bitfinex-derivatives/quotes_BTCF0:USTF0_20250509
["timestamp","ask_amount","ask_price","bid_price","bid_amount"]
[1746754741868,0.4778569,102750.0,102740.0,0.3394252]
[1746754743273,0.4798569,102750.0,102740.0,0.3404252]
[1746754744071,0.4798569,102750.0,102740.0,0.7012252]
[1746754744466,0.4798569,102750.0,102740.0,0.2443252]
[1746754744665,0.4798569,102750.0,102740.0,0.6964252]
[1746754744866,0.4798569,102750.0,102740.0,0.3356252]
[1746754745574,0.58903578,102750.0,102740.0,0.1956603]
[1746754745784,0.4798569,102750.0,102740.0,0.1956603]
[1746754746272,0.4798569,102750.0,102740.0,0.2894603]
[1746754746469,0.8406569,102750.0,102740.0,0.2894603]
[1746754747880,0.4798569,102750.0,102740.0,0.2894603]
[1746754749376,0.60311067,102750.0,102740.0,0.2894603]
[1746754749868,0.96391067,102750.0,102740.0,0.2894603]
[1746754750068,0.96391067,102750.0,102740.0,0.0948]
[1746754752779,0.96391067,102750.0,102740.0,0.001]
[1746754753088,0.1946948,102730.0,102720.0,0.19859597]
[1746754753273,0.8404333,102740.0,102730.0,0.1946948]
[1746754753468,0.4796333,102740.0,102730.0,0.3815948]
[1746754753880,0.4796333,102740.0,102730.0,0.7423948]
[1746754754381,0.4796333,102740.0,102730.0,0.2873948]
[1746754754679,0.8404333,102740.0,102730.0,0.2873948]
[1746754754880,0.4796333,102740.0,102730.0,0.2873948]
[1746754755982,0.4806333,102740.0,102730.0,0.2873948]
[1746754756184,0.4816333,102740.0,102730.0,0.0927]
[1746754756386,0.59081218,102740.0,102730.0,0.0927]
[1746754756577,0.4816333,102740.0,102730.0,0.0927]
[1746754757183,0.60488707,102740.0,102730.0,0.0927]
[1746754757885,0.60488707,102740.0,102730.0,0.2873948]
[1746754758185,0.31285377,102740.0,102730.0,0.39657368]
[1746754758372,0.21505377,102740.0,102730.0,0.85437368]
[1746754758579,0.12525377,102740.0,102730.0,0.85437368]
[1746754758879,0.12525377,102740.0,102730.0,1.05437368]
[1746754759083,0.12525377,102740.0,102730.0,0.4508]
[1746754759285,0.96892957,102740.0,102730.0,0.16]
[1746754760180,0.1946948,102730.0,102720.0,0.48830617]
[1746754760380,0.3854948,102730.0,102720.0,0.48830617]
[1746754761181,0.3854948,102730.0,102720.0,0.29359407]
[1746754761380,0.3854948,102730.0,102720.0,0.48830777]
[1746754761576,0.3864948,102730.0,102720.0,0.48830777]
[1746754762491,0.3864948,102730.0,102720.0,0.10089407]
[1746754762985,0.3874948,102730.0,102720.0,0.10089407]
[1746754763188,0.5474948,102730.0,102720.0,0.10089407]
[1746754763884,0.69480207,102730.0,102720.0,0.10089407]
[1746754766791,1.05560207,102730.0,102720.0,0.10089407]
[1746754766991,0.5474948,102730.0,102720.0,0.29560777]
[1746754768690,0.5474948,102730.0,102720.0,0.10089407]
[1746754768993,0.5474948,102730.0,102720.0,0.29560777]
[1746754770897,1.01747368,102730.0,102720.0,0.10089407]
[1746754772297,1.01747368,102730.0,102720.0,0.00389407]
[1746754773485,1.01747368,102730.0,102720.0,0.00409478]
[1746754774089,0.9082948,102730.0,102720.0,0.00409478]
[1746754774289,0.9082948,102730.0,102720.0,0.29700848]
[1746754774897,1.05651769,102730.0,102720.0,0.29700848]
[1746754776497,1.05651769,102730.0,102720.0,0.10229478]
[1746754777798,1.16569657,102730.0,102720.0,0.00409478]
[1746754778701,1.01747368,102730.0,102720.0,0.00409478]
[1746754779297,0.1947327,102710.0,102700.0,0.0959053]
[1746754779506,0.5555327,102710.0,102700.0,0.290657]
[1746754779806,0.7441327,102710.0,102700.0,0.382757]
[1746754779996,0.3833327,102710.0,102700.0,0.382757]
[1746754780304,0.5433327,102710.0,102700.0,0.476657]
[1746754780997,0.55541691,102710.0,102700.0,0.476657]
[1746754781201,0.55641691,102710.0,102700.0,0.476657]
[1746754783003,0.67985372,102710.0,102700.0,0.476657]
[1746754785397,1.04065372,102710.0,102700.0,0.476657]
[1746754785907,1.04308372,102710.0,102700.0,0.476657]
[1746754786102,0.91964691,102710.0,102700.0,0.476657]
[1746754786405,0.55884691,102710.0,102700.0,0.476657]
[1746754787608,0.55884691,102710.0,102700.0,0.2819053]
[1746754788600,0.55884691,102710.0,102700.0,0.476657]
[1746754789405,0.66802579,102710.0,102700.0,0.1880053]
[1746754789806,0.66802579,102710.0,102700.0,0.0959053]
[1746754790202,0.66802579,102710.0,102700.0,0.1915053]
[1746754790406,0.66802579,102710.0,102700.0,0.0959053]
[1746754793211,0.91964691,102710.0,102700.0,0.0959053]
[1746754793419,0.55884691,102710.0,102700.0,0.0959053]
[1746754793709,0.55884691,102710.0,102700.0,0.49853588]
[1746754793917,0.55884691,102710.0,102700.0,0.95553588]
[1746754794913,0.37024691,102710.0,102700.0,1.22553588]
[1746754795117,0.37024691,102710.0,102700.0,1.04034295]
[1746754795316,0.17551421,102710.0,102700.0,1.04034295]
[1746754795616,0.17551421,102710.0,102700.0,0.97034295]
[1746754795815,0.37024691,102710.0,102700.0,0.95553588]
[1746754796216,0.17551421,102710.0,102700.0,0.95553588]
[1746754796415,0.37024691,102710.0,102700.0,0.95553588]
[1746754797306,0.37024691,102710.0,102700.0,0.97041757]
[1746754797511,0.16443,102710.0,102700.0,1.15041757]
[1746754797810,0.16443,102710.0,102700.0,1.19553588]
[1746754799424,0.16443,102710.0,102700.0,1.21041262]
[1746754800125,0.3591627,102710.0,102700.0,1.03041262]
[1746754800424,0.3591627,102710.0,102700.0,0.92123374]
[1746754800628,0.4501627,102710.0,102700.0,1.03041262]
[1746754802629,0.16443,102710.0,102700.0,1.52826062]
[1746754803128,0.3591627,102710.0,102700.0,1.41601588]
[1746754803427,0.4513627,102710.0,102700.0,1.31097588]
[1746754803623,0.5440627,102710.0,102700.0,1.17097588]
[1746754804329,0.34933,102710.0,102700.0,1.30097588]
[1746754804522,0.16443,102710.0,102700.0,1.31600359]
[1746754805226,0.16443,102710.0,102700.0,1.32085921]
[1746754805929,0.16443,102710.0,102700.0,1.41822721]
[1746754806230,0.16443,102710.0,102700.0,1.41823212]
[1746754806424,0.16443,102710.0,102700.0,1.41337159]
[1746754806629,0.16443,102710.0,102700.0,1.41820833]
[1746754807426,0.16443,102710.0,102700.0,1.49600833]
[1746754808333,0.16443,102710.0,102700.0,1.49117159]
[1746754811524,0.16443,102710.0,102700.0,1.39380359]
[1746754812619,0.13412551,102730.0,102720.0,0.1947137]
[1746754812823,0.23071461,102730.0,102720.0,1.39009258]
[1746754813029,0.32761461,102730.0,102720.0,1.39009258]
[1746754813232,0.48761461,102730.0,102720.0,1.55009258]
[1746754813632,0.47662908,102730.0,102720.0,1.55009258]
[1746754813831,0.48162908,102730.0,102720.0,1.55009258]
[1746754814636,0.48562908,102730.0,102720.0,1.55009258]
[1746754815428,0.49628342,102730.0,102720.0,1.55009258]
[1746754815735,0.68032388,102730.0,102720.0,1.55009258]
[1746754816333,0.68032388,102730.0,102720.0,1.39009258]
[1746754817233,0.48562908,102730.0,102720.0,1.39009258]
[1746754817436,0.48562908,102730.0,102720.0,1.36009258]
[1746754817737,0.48562908,102730.0,102720.0,1.52009258]
[1746754818123,0.29232908,102730.0,102720.0,1.68379146]
[1746754818323,0.29232908,102730.0,102720.0,1.76478565]
[1746754818536,0.29232908,102730.0,102720.0,1.76869791]
[1746754819437,0.29232908,102730.0,102720.0,1.77372791]
[1746754819632,0.28832908,102730.0,102720.0,1.77472791]
[1746754819831,0.28532908,102730.0,102720.0,1.77572791]
[1746754820233,0.2581,102730.0,102720.0,1.77572791]
[1746754820433,0.2581,102730.0,102720.0,1.66654903]
[1746754820635,0.3536,102730.0,102720.0,1.66654903]
[1746754820835,0.5482948,102730.0,102720.0,1.60173015]
[1746754821036,0.5482948,102730.0,102720.0,0.93322015]
[1746754821335,0.5482948,102730.0,102720.0,0.99322015]
[1746754821736,0.5482948,102730.0,102720.0,1.01322015]
[1746754822334,0.5482948,102730.0,102720.0,0.99322015]
[1746754824731,0.3536,102730.0,102720.0,1.29157791]
[1746754824937,0.3536,102730.0,102720.0,1.58469903]
[1746754825444,0.3536,102730.0,102720.0,1.58967076]
[1746754826135,0.3536,102730.0,102720.0,1.69886021]
[1746754827946,0.3536,102730.0,102720.0,1.69901018]
[1746754829232,0.162,102730.0,102720.0,1.69901018]
[1746754829438,0.162,102730.0,102720.0,1.79635818]
[1746754829643,0.15712984,102730.0,102720.0,1.69901018]
[1746754831142,0.13231394,102730.0,102720.0,3.68415818]
[1746754831344,0.13231394,102730.0,102720.0,3.69523869]
[1746754832644,0.13231394,102730.0,102720.0,3.59789069]
[1746754834643,0.22451394,102730.0,102720.0,3.59789069]
[1746754834838,0.22451394,102730.0,102720.0,3.58681018]
[1746754835044,0.22451394,102730.0,102720.0,3.44521018]
[1746754835239,0.31501394,102730.0,102720.0,3.44521018]
[1746754835441,0.40641394,102730.0,102720.0,3.44521018]
[1746754836648,0.40641394,102730.0,102720.0,3.44552329]
[1746754837747,0.40641394,102730.0,102720.0,3.34156329]
[1746754837950,0.40641394,102730.0,102720.0,3.44544329]
[1746754840742,0.40641394,102730.0,102720.0,3.22708553]
[1746754840939,0.40641394,102730.0,102720.0,3.44544329]
[1746754841452,0.40641394,102730.0,102720.0,3.44589697]
[1746754844846,0.40641394,102730.0,102720.0,3.34201697]
[1746754845050,0.40154374,102730.0,102720.0,3.44565697]
[1746754845448,0.40154374,102730.0,102720.0,3.23757697]
[1746754845644,0.40154374,102730.0,102720.0,3.44561697]
[1746754846750,0.31014374,102730.0,102720.0,3.44561697]
[1746754847246,0.31014374,102730.0,102720.0,3.44003102]
[1746754847451,0.31014374,102730.0,102720.0,3.44560364]
[1746754848050,0.12744374,102730.0,102720.0,3.44560364]
[1746754848349,0.19263,102740.0,102730.0,0.1946948]
[1746754848649,0.001,102760.0,102750.0,0.1946569]
[1746754848952,0.1912,102760.0,102750.0,1.66336684]
[1746754849148,0.3512,102760.0,102750.0,1.85706684]
[1746754849457,0.3512,102760.0,102750.0,3.35706684]
[1746754849951,0.3512,102760.0,102750.0,3.371797]
[1746754850152,0.3522,102760.0,102750.0,3.372797]
[1746754850453,0.3522,102760.0,102750.0,3.35806684]
[1746754850651,0.162,102760.0,102750.0,3.35806684]
[1746754851453,0.3529,102760.0,102750.0,3.35806684]
[1746754852145,0.3539,102760.0,102750.0,3.35806684]
[1746754852553,0.3539,102760.0,102750.0,3.36911874]
[1746754853653,0.3539,102760.0,102750.0,3.35806684]
[1746754854452,0.4509,102760.0,102750.0,3.35806684]
[1746754855055,0.4509,102760.0,102750.0,3.37283353]
[1746754855455,0.4509,102760.0,102750.0,3.24267353]
[1746754855754,0.4509,102760.0,102750.0,3.44935353]
[1746754860465,0.163,102760.0,102750.0,3.44935353]
[1746754860852,0.163,102760.0,102750.0,3.68935353]
[1746754861360,0.163,102760.0,102750.0,3.68951719]
[1746754861559,0.163,102760.0,102750.0,3.61171719]
[1746754861864,0.163,102760.0,102750.0,3.39335943]
[1746754862063,0.2561,102760.0,102750.0,3.61171719]
[1746754862458,0.2561,102760.0,102750.0,3.34171719]
[1746754863156,0.3482,102760.0,102750.0,3.34171719]
[1746754864668,0.2561,102760.0,102750.0,3.34171719]
[1746754865070,0.3443,102760.0,102750.0,3.34171719]
[1746754866271,0.3443,102760.0,102750.0,3.3415078]
[1746754871475,0.1141035,102760.0,102750.0,3.6215078]
[1746754871782,0.28563,102770.0,102760.0,0.1946379]
[1746754871971,0.28563,102770.0,102760.0,1.25406323]
[1746754872172,0.44563,102770.0,102760.0,2.57506323]
[1746754873274,0.44863,102770.0,102760.0,2.57606323]
[1746754873676,0.45163,102770.0,102760.0,2.577146]
[1746754875781,0.45163,102770.0,102760.0,0.98082712]
[1746754875981,0.45163,102770.0,102760.0,0.9498977]
[1746754876880,0.646249,102770.0,102760.0,0.9498977]
[1746754877083,0.646249,102770.0,102760.0,0.87826712]
[1746754877381,0.646249,102770.0,102760.0,0.87818617]
[1746754878874,0.646249,102770.0,102760.0,0.75818617]
[1746754879575,0.76969245,102770.0,102760.0,0.88818617]
[1746754879771,0.57507345,102770.0,102760.0,0.8773547]
[1746754879978,0.57507345,102770.0,102760.0,1.0066085]
[1746754880182,0.57507345,102770.0,102760.0,1.1914085]
[1746754880377,0.47887345,102770.0,102760.0,1.1914085]
[1746754882581,0.47400512,102770.0,102760.0,1.1914085]
[1746754883280,0.35056167,102770.0,102760.0,1.1914085]
[1746754883475,0.35056167,102770.0,102760.0,1.2692085]
[1746754883476,0.166,102770.0,102760.0,1.2692085]
[1746754883679,0.0957,102780.0,102770.0,0.194619]
[1746754883879,0.0957,102780.0,102770.0,1.1466896]
[1746754884381,0.0957,102780.0,102770.0,2.6466896]
[1746754884883,0.0967,102780.0,102770.0,2.6486896]
[1746754885784,0.1889,102780.0,102770.0,2.6486896]
[1746754885988,0.1889,102780.0,102770.0,2.65193192]
[1746754887890,0.1889,102780.0,102770.0,2.65197181]
[1746754891092,0.0935,102780.0,102770.0,2.65197181]
[1746754891297,0.0013,102780.0,102770.0,2.76114034]
[1746754891586,0.0013,102780.0,102770.0,2.99160911]
[1746754892089,0.0013,102780.0,102770.0,3.15160911]
[1746754893488,0.0971,102780.0,102770.0,3.15160911]
[1746754893694,0.0013,102780.0,102770.0,3.15160911]
[1746754893890,0.31397345,102790.0,102780.0,0.1946001]
[1746754894197,0.19053,102790.0,102780.0,1.71418188]
[1746754894787,0.19053,102790.0,102780.0,1.72940144]
[1746754895391,0.19053,102790.0,102780.0,1.73040144]
[1746754895896,0.19053,102790.0,102780.0,3.23040144]
[1746754896387,0.19053,102790.0,102780.0,3.23049702]
[1746754896589,0.19153,102790.0,102780.0,3.23049702]
[1746754896784,0.19153,102790.0,102780.0,3.23050228]
[1746754896981,0.19153,102790.0,102780.0,3.23050229]
[1746754897493,0.19053,102790.0,102780.0,3.23250229]
[1746754897891,0.0924,102800.0,102790.0,0.1945811]
[1746754898189,0.1892,102800.0,102790.0,1.07883476]
[1746754898688,0.31334345,102810.0,102800.0,0.1945622]
[1746754898891,0.40634345,102810.0,102800.0,1.1778963]
[1746754899394,0.40634345,102810.0,102800.0,2.69311586]
[1746754899792,0.31224345,102810.0,102800.0,2.70353688]
[1746754899984,0.12344345,102810.0,102800.0,3.08270541]
[1746754900188,0.12344345,102810.0,102800.0,3.23228439]
[1746754900383,0.12644345,102810.0,102800.0,3.12411586]
[1746754900589,0.31564345,102810.0,102800.0,3.12411586]
[1746754900794,0.1922,102810.0,102800.0,3.12411586]
[1746754900994,0.2854,102810.0,102800.0,3.12411586]
[1746754901196,0.2824,102810.0,102800.0,3.16715586]
[1746754901493,0.2844,102810.0,102800.0,3.16915586]
[1746754901892,0.2824,102810.0,102800.0,3.16915586]
[1746754902092,0.2824,102810.0,102800.0,3.17115586]
[1746754902294,0.2824,102810.0,102800.0,3.1559363]
[1746754904904,0.1892,102810.0,102800.0,3.1559363]
[1746754905202,0.1892,102810.0,102800.0,3.3159363]
[1746754906304,0.1892,102810.0,102800.0,3.1559363]
[1746754907805,0.1892,102810.0,102800.0,3.15553063]
[1746754910802,0.1892,102810.0,102800.0,3.17031247]
[1746754911502,0.1892,102810.0,102800.0,3.17038827]
[1746754917204,0.1892,102810.0,102800.0,3.06121974]
[1746754917699,0.1892,102810.0,102800.0,3.15560643]
[1746754918611,0.1892,102810.0,102800.0,3.17051954]
[1746754919010,0.1892,102810.0,102800.0,3.53131954]
[1746754919612,0.09877872,102830.0,102820.0,0.1945244]
[1746754919811,0.28637872,102830.0,102820.0,1.46258368]
[1746754920111,0.28637872,102830.0,102820.0,3.40328368]
[1746754920308,0.28637872,102830.0,102820.0,3.2602601]
[1746754920499,0.28637872,102830.0,102820.0,3.40332296]
[1746754920705,0.28637872,102830.0,102820.0,3.40532297]
[1746754921104,0.28637872,102830.0,102820.0,3.24532297]
[1746754921808,0.28637872,102830.0,102820.0,3.21101121]
[1746754922011,0.28637872,102830.0,102820.0,3.21201121]
[1746754922719,0.1876,102830.0,102820.0,3.21201121]
[1746754923605,0.1876,102830.0,102820.0,3.20661404]
[1746754923805,0.1876,102830.0,102820.0,3.21199819]
[1746754924006,0.1876,102830.0,102820.0,3.22669995]
[1746754924408,0.1876,102830.0,102820.0,3.14889995]
[1746754925515,0.1876,102830.0,102820.0,3.14881487]
[1746754925813,0.1876,102830.0,102820.0,3.05491487]
[1746754926118,0.1876,102830.0,102820.0,3.06449487]
[1746754926413,0.1876,102830.0,102820.0,3.16533487]
[1746754926602,0.1623598,102830.0,102820.0,3.22944856]
[1746754926819,0.34503,102840.0,102830.0,0.1945054]
[1746754927105,0.34503,102840.0,102830.0,1.1415078]
[1746754927302,0.18503,102840.0,102830.0,1.1415078]
[1746754928715,0.18703,102840.0,102830.0,1.1415078]
[1746754928915,0.18803,102840.0,102830.0,1.1415078]
[1746754929306,0.18803,102840.0,102830.0,1.14147694]
[1746754930015,0.28343,102840.0,102830.0,1.14147694]
[1746754931607,0.19073,102840.0,102830.0,1.14147694]
[1746754931810,0.19073,102840.0,102830.0,1.46046658]
[1746754933112,0.19073,102840.0,102830.0,1.62046658]
[1746754933316,0.19073,102840.0,102830.0,1.63069872]
[1746754933820,0.19327872,102850.0,102840.0,0.1944865]
[1746754934021,0.28797872,102850.0,102840.0,1.35874768]
[1746754934212,0.28797872,102850.0,102840.0,1.51874768]
[1746754934411,0.28797872,102850.0,102840.0,3.01874768]
[1746754934612,0.1892,102850.0,102840.0,3.01879322]
[1746754934816,0.19197872,102860.0,102850.0,0.1944676]
[1746754935014,0.19197872,102860.0,102850.0,1.31422463]
[1746754935521,0.09877872,102860.0,102850.0,1.56422463]
[1746754935816,0.12344345,102870.0,102860.0,0.1944487]
[1746754936018,0.12344345,102870.0,102860.0,1.22485537]
[1746754936212,0.12344345,102870.0,102860.0,1.31375537]
[1746754936412,0.12344345,102870.0,102860.0,2.70476573]
[1746754937217,0.12344345,102870.0,102860.0,2.91476573]
[1746754938021,0.12544345,102870.0,102860.0,3.02375537]
[1746754938225,0.004,102870.0,102860.0,3.18375537]
[1746754938820,0.1793,102870.0,102860.0,3.18775537]
[1746754940711,0.1793,102870.0,102860.0,3.07876573]
[1746754940923,0.1793,102870.0,102860.0,2.99036573]
[1746754941223,0.1793,102870.0,102860.0,2.83036573]
[1746754941729,0.1793,102870.0,102860.0,2.82994345]
[1746754942924,0.1793,102870.0,102860.0,2.86994345]
[1746754945119,0.16934722,102880.0,102870.0,0.1944298]
[1746754945421,0.35514722,102880.0,102870.0,1.02013491]
[1746754945621,0.35514722,102880.0,102870.0,1.23811419]
[1746754945826,0.28105,102880.0,102870.0,1.23807546]
[1746754946828,0.18795,102880.0,102870.0,1.23807546]
[1746754947025,0.18895,102880.0,102870.0,1.23807546]
[1746754948834,0.18895,102880.0,102870.0,1.23799493]
[1746754949934,0.26292949,102880.0,102870.0,1.23799493]
[1746754951344,0.26292949,102880.0,102870.0,1.14809493]
[1746754951533,0.45734039,102880.0,102870.0,0.56001565]
[1746754951834,0.45734039,102880.0,102870.0,0.5408]
[1746754952037,0.45734039,102880.0,102870.0,0.6052298]
[1746754952233,0.61734039,102880.0,102870.0,0.6052298]
[1746754952432,0.42292949,102880.0,102870.0,0.71421944]
[1746754952834,0.42292949,102880.0,102870.0,0.82421944]
[1746754953238,0.26292949,102880.0,102870.0,0.7152298]
[1746754953438,0.26292949,102880.0,102870.0,0.82421944]
[1746754954030,0.45734039,102880.0,102870.0,0.82421944]
[1746754954225,0.61734039,102880.0,102870.0,0.82421944]
[1746754955340,0.42292949,102880.0,102870.0,0.93320908]
[1746754955637,0.22344345,102900.0,102890.0,0.194392]
[1746754955942,0.14912417,102910.0,102900.0,0.1943731]
[1746754955943,0.24572417,102910.0,102900.0,0.1943731]
[1746754956144,0.24572417,102910.0,102900.0,1.04946274]
[1746754957540,0.24872417,102910.0,102900.0,1.04946274]
[1746754958442,0.25072417,102910.0,102900.0,1.04946274]
[1746754958644,0.33852417,102910.0,102900.0,1.04946274]
[1746754958844,0.1904,102910.0,102900.0,1.04946274]
[1746754959142,0.2833,102910.0,102900.0,1.04922351]
[1746754959743,0.2833,102910.0,102900.0,1.06400044]
[1746754961648,0.2833,102910.0,102900.0,1.07400044]
[1746754963446,0.1904,102910.0,102900.0,1.07400044]
[1746754964633,0.0938,102910.0,102900.0,1.18299008]
[1746754964837,0.0938,102910.0,102900.0,1.07400044]
[1746754965044,0.0938,102910.0,102900.0,1.18299008]
[1746754965244,0.006,102910.0,102900.0,1.07400044]
[1746754965447,0.0951,102910.0,102900.0,1.07400044]
[1746754966539,0.0951,102910.0,102900.0,2.57400044]
[1746754966747,0.0951,102910.0,102900.0,2.77376044]
[1746754968249,0.006,102910.0,102900.0,2.88275008]
[1746754968449,0.006,102910.0,102900.0,2.88469371]
[1746754969250,0.006,102910.0,102900.0,3.04469371]
[1746754971142,0.0003,102920.0,102900.0,3.04469371]
[1746754971348,0.0003,102920.0,102910.0,0.93318728]
[1746754971549,0.0003,102920.0,102910.0,1.22318728]
[1746754972457,0.0013,102920.0,102910.0,1.22318728]
[1746754972660,0.0013,102920.0,102910.0,1.42182728]
[1746754972859,0.1885,102920.0,102910.0,1.42182728]
[1746754973165,0.1885,102920.0,102910.0,1.22318728]
[1746754973365,0.1885,102920.0,102910.0,1.11419764]
[1746754973568,0.2817,102920.0,102910.0,1.42282728]
[1746754973872,0.2817,102920.0,102910.0,1.31383764]
[1746754974170,0.2817,102920.0,102910.0,1.42282728]
[1746754975571,0.4760354,102920.0,102910.0,0.93909764]
[1746754975766,0.2817,102920.0,102910.0,1.04765764]
[1746754976165,0.4417,102920.0,102910.0,1.04765764]
[1746754977771,0.4417,102920.0,102910.0,1.01765764]
[1746754979772,0.6360354,102920.0,102910.0,1.01765764]
[1746754980373,0.6360354,102920.0,102910.0,0.81909764]
[1746754980765,0.6360354,102920.0,102910.0,0.67909764]
[1746754981479,0.6360354,102920.0,102910.0,0.64909764]
[1746754985682,0.6350354,102920.0,102910.0,0.64909764]
[1746754985873,0.6370354,102920.0,102910.0,0.64909764]
[1746754986179,0.6370354,102920.0,102910.0,0.67909764]
[1746754986981,0.6390354,102920.0,102910.0,0.67809764]
[1746754987382,0.80295992,102920.0,102910.0,0.67809764]
[1746754987576,0.80295992,102920.0,102910.0,0.6761542]
[1746754989982,0.80295992,102920.0,102910.0,0.6461542]
[1746754991184,0.67921007,102920.0,102910.0,0.6461542]
[1746754991590,0.67921007,102920.0,102910.0,0.75514384]
[1746754992277,0.51921007,102920.0,102910.0,0.75514384]
[1746754993079,0.51921007,102920.0,102910.0,0.91514384]
[1746754993285,0.51921007,102920.0,102910.0,1.00714384]
[1746754994285,0.51921007,102920.0,102910.0,0.93854384]
[1746754994988,0.51921007,102920.0,102910.0,0.84714384]
[1746754995180,0.51921007,102920.0,102910.0,1.00714384]
[1746754995379,0.51921007,102920.0,102910.0,0.91514384]
[1746754996681,0.51921007,102920.0,102910.0,1.01074384]
[1746754998087,0.51921007,102920.0,102910.0,0.85074384]
[1746754998487,0.51921007,102920.0,102910.0,0.7417542]
[1746754998785,0.51921007,102920.0,102910.0,0.6461542]
[1746755000390,0.51921007,102920.0,102910.0,0.8941542]
[1746755001993,0.66771913,102920.0,102910.0,0.8941542]
[1746755004491,0.66771913,102920.0,102910.0,1.00314384]
[1746755004686,0.38731913,102920.0,102910.0,1.03314384]
[1746755005192,0.38731913,102920.0,102910.0,1.00314384]
[1746755005392,0.38731913,102920.0,102910.0,1.03314384]
[1746755006595,0.38531913,102920.0,102910.0,1.03314384]
[1746755006798,0.38631913,102920.0,102910.0,1.03314384]
[1746755007393,0.38531913,102920.0,102910.0,1.03314384]
[1746755007597,0.38631913,102920.0,102910.0,1.03314384]
[1746755010600,0.19198373,102920.0,102910.0,1.00314384]
[1746755010900,0.19198373,102920.0,102910.0,1.20314384]
[1746755012505,0.19198373,102920.0,102910.0,1.21361979]
[1746755012696,0.19098373,102920.0,102910.0,1.21361979]
[1746755013001,0.1663973,102920.0,102910.0,1.21461979]
[1746755013307,0.1663973,102920.0,102910.0,2.71461979]
[1746755013506,0.1643973,102920.0,102910.0,2.71561979]
[1746755016408,0.09931754,102920.0,102910.0,2.71561979]
[1746755017604,0.09931754,102920.0,102910.0,2.70514384]
[1746755018105,0.09931754,102920.0,102910.0,2.69514384]
[1746755020109,0.09931754,102920.0,102910.0,2.53514384]
[1746755020301,0.12422263,102920.0,102910.0,2.53514384]
[1746755021407,0.12422263,102920.0,102910.0,1.03514384]
[1746755021609,0.21692263,102920.0,102910.0,1.03514384]
[1746755021808,0.21692263,102920.0,102910.0,2.53514384]
[1746755022500,0.21692263,102920.0,102910.0,1.03514384]
[1746755023202,0.093,102920.0,102910.0,1.03514384]
[1746755026501,0.093,102920.0,102910.0,1.23308728]
[1746755026502,0.1896,102920.0,102910.0,1.23308728]
[1746755027109,0.28855219,102920.0,102910.0,1.23308728]
[1746755029214,0.48288759,102920.0,102910.0,1.13544728]
[1746755029606,0.28855219,102920.0,102910.0,1.13544728]
[1746755033718,0.35369224,102920.0,102910.0,1.13544728]
[1746755035516,0.35369224,102920.0,102910.0,1.23276728]
[1746755036416,0.35369224,102920.0,102910.0,1.23172728]
[1746755036714,0.54802764,102920.0,102910.0,1.23172728]
[1746755037220,0.35369224,102920.0,102910.0,1.23172728]
[1746755037608,0.25709224,102920.0,102910.0,1.23172728]
[1746755037811,0.14850906,102930.0,102920.0,0.1943354]
[1746755038003,0.14850906,102930.0,102920.0,1.26551468]
[1746755038710,0.14850906,102930.0,102920.0,2.76551468]
[1746755038909,0.14950906,102930.0,102920.0,2.76551468]
[1746755039118,0.15150906,102930.0,102920.0,2.92551468]
[1746755039614,0.15150906,102930.0,102920.0,2.92745793]
[1746755041606,0.003,102930.0,102920.0,2.92745793]
[1746755042913,0.003,102930.0,102920.0,2.81846829]
[1746755043123,0.003,102930.0,102920.0,2.65846829]
[1746755043421,0.003,102930.0,102920.0,1.26745793]
[1746755043617,0.1949283,102940.0,102930.0,0.1943165]
[1746755043915,0.1949283,102940.0,102930.0,1.23449578]
[1746755044120,0.1949283,102940.0,102930.0,2.73449578]
[1746755044511,0.1949283,102940.0,102930.0,2.73643884]
[1746755044712,0.1030283,102940.0,102930.0,2.73643884]
[1746755045416,0.1030283,102940.0,102930.0,2.7467459]
[1746755046019,0.1060283,102940.0,102930.0,2.7467459]
[1746755046418,0.1030283,102940.0,102930.0,2.7467459]
[1746755046721,0.1040283,102940.0,102930.0,2.7467459]
[1746755047216,0.1010283,102940.0,102930.0,2.7467459]
[1746755047514,0.1020283,102940.0,102930.0,2.7467459]
[1746755048417,0.003,102940.0,102930.0,2.7467459]
[1746755048918,0.003,102940.0,102930.0,1.24480284]
[1746755049622,0.003,102940.0,102930.0,2.74480284]
[1746755053724,0.003,102940.0,102930.0,2.66956808]
[1746755054527,0.1872283,102950.0,102940.0,0.33704212]
[1746755054728,0.1872283,102950.0,102940.0,1.39628212]
[1746755055219,0.0990283,102950.0,102940.0,1.39628212]
[1746755055419,0.0990283,102950.0,102940.0,2.89628212]
[1746755055619,0.0003,102960.0,102950.0,0.1942787]
[1746755055822,0.0003,102960.0,102950.0,1.05532322]
[1746755056015,0.00272,102960.0,102950.0,1.15532322]
[1746755056917,0.00572,102960.0,102950.0,1.15532322]
[1746755057128,0.00572,102960.0,102950.0,1.31532322]
[1746755057624,0.00572,102960.0,102950.0,1.31632322]
[1746755057825,0.00572,102960.0,102950.0,1.28228453]
[1746755058023,0.14950906,102970.0,102960.0,0.1942599]
[1746755058325,0.14950906,102970.0,102960.0,1.45917156]
[1746755058526,0.24030906,102970.0,102960.0,1.45917156]
[1746755058726,0.24030906,102970.0,102960.0,2.95917156]
[1746755059318,0.33090906,102970.0,102960.0,2.95917156]
[1746755059918,0.33190906,102970.0,102960.0,2.95917156]
[1746755060428,0.1834,102970.0,102960.0,2.95917156]
[1746755060926,0.0928,102970.0,102960.0,2.95917156]
[1746755061629,0.1809,102970.0,102960.0,2.95917156]
[1746755061927,0.1809,102970.0,102960.0,2.97373738]
[1746755063627,0.1809,102970.0,102960.0,3.16649738]
[1746755063928,0.1809,102970.0,102960.0,2.97373738]
[1746755064228,0.1809,102970.0,102960.0,3.16649738]
[1746755064528,0.0928,102970.0,102960.0,3.16649738]
[1746755064828,0.002,102970.0,102960.0,3.16649738]
[1746755068129,0.002,102970.0,102960.0,2.97373738]
[1746755068432,0.002,102970.0,102960.0,3.16633738]
[1746755068632,0.0901,102970.0,102960.0,3.16633738]
[1746755071141,0.0901,102970.0,102960.0,2.97373738]
[1746755071431,0.0901,102970.0,102960.0,3.16621738]
[1746755074439,0.0901,102970.0,102960.0,2.97373738]
[1746755074739,0.0901,102970.0,102960.0,3.16613738]
[1746755076233,0.0901,102970.0,102960.0,3.00613738]
[1746755077235,0.0901,102970.0,102960.0,3.16613738]
[1746755077743,0.0901,102970.0,102960.0,3.09138746]
[1746755078141,0.0901,102970.0,102960.0,2.93138746]
[1746755078737,0.16416008,102970.0,102960.0,2.93138746]
[1746755078942,0.34526008,102970.0,102960.0,2.93138746]
[1746755080345,0.34526008,102970.0,102960.0,2.57058746]
[1746755080544,0.34526008,102970.0,102960.0,3.29218746]
[1746755081941,0.25296008,102970.0,102960.0,3.29218746]
[1746755082246,0.25296008,102970.0,102960.0,3.52351833]